fUSD/lending_fUSD_20240811
["ID","MTS","AMOUNT","RATE_DAILY","PERIOD"]
[334649457,1723391432391,-150.19,0.00010478,2]
[334649458,1723391432400,-150.0,0.00010478,2]
[334649459,1723391432410,-513.35,0.0001053,2]
[334649460,1723391432420,-356.49,0.000106,2]
[334649461,1723391432430,-161.58,0.00010634,2]
[334649462,1723391432439,-356.49,0.000107,2]
[334649463,1723391432449,-499.99,0.000107,2]
[334649464,1723391432459,-356.49,0.000108,2]
[334649465,1723391432468,-297.2478,0.00010899,2]
[334649466,1723391432478,-765.7664,0.000109,2]
[334649467,1723391432488,-15423.356,0.000109,2]
[334649468,1723391432497,-47221.58003783,0.000109,2]
[334649469,1723391432510,-10283.09270712,0.000109,2]
[334649471,1723391432539,-658.25,0.000109,2]
[334649474,1723391432550,-4228.0863352,0.000109,2]
[334649476,1723391432562,-530.64454437,0.000109,2]
[334649478,1723391432573,-517.85511205,0.000109,2]
[334649481,1723391432584,-820.87408869,0.000109,2]
[334649483,1723391432595,-460.43123519,0.000109,2]
[334649485,1723391432606,-2109.43741355,0.000109,2]
[334649487,1723391432619,-470.09299086,0.000109,2]
[334649489,1723391432629,-1283.5936986,0.000109,2]
[334649491,1723391432638,-418.83651901,0.000109,2]
[334649492,1723391432648,-2397.38809172,0.000109,2]
[334649493,1723391432658,-150.0,0.00010959,2]
[334649494,1723391432668,-2000.0,0.00010959,2]
[334649495,1723391432677,-250.0,0.00010959,2]
[334649496,1723391432687,-587.14,0.00010959,2]
[334649497,1723391432697,-1184.68636019,0.0001099,2]
[334649498,1723391432710,-1184.68636019,0.0001099,2]
[334649499,1723391432720,-1184.68636019,0.0001099,2]
[334649500,1723391432730,-5656.9947895,0.00010998,2]
[334649501,1723391432740,-2045.2310229,0.00010998,2]
[334649502,1723391432750,-6855.34098933,0.00010998,2]
[334649503,1723391432762,-27182.04490027,0.00010998,2]
[334649504,1723391432772,-8176.04654029,0.00010999,2]
[334649505,1723391432782,-604.0,0.00011,2]
[334649506,1723391432794,-7887.02446545,0.00011,2]
[334649507,1723391432819,-78765.25691989,0.00011,2]
[334649508,1723391432829,-311.381,0.00011,2]
[334649509,1723391432838,-567910.20083716,0.00011,2]
[334649510,1723391432850,-1910.04659137,0.00011,2]
[334649511,1723391432861,-1085.42033485,0.00011,2]
[334649512,1723391432875,-943.09082566,0.00011,2]
[334649513,1723391432896,-604.81421,0.00011,2]
[334649514,1723391432909,-7823.73689433,0.00011,2]
[334649515,1723391432920,-301.2900896,0.00011,2]
[334649516,1723391432932,-301.9016,0.00011,2]
[334649526,1723391438286,-438.848,0.00011,2]
[334649527,1723391438299,-103.152,0.00011,2]
[334649528,1723391438310,-505.88884905,0.00011,2]
[334649529,1723391438322,-2084.0327375,0.00011,2]
[334649530,1723391438342,-2158.98320904,0.00011,2]
[334649531,1723391438354,-3253.18471337,0.00011,2]
[334649532,1723391438367,-6336.6802766,0.00011,2]
[334649533,1723391438388,-281.55,0.00011,2]
[334649534,1723391438484,-1251.34130064,0.00011,2]
[334649535,1723391438496,-729.82228752,0.00011,2]
[334649536,1723391438508,-289.4002629,0.00011,2]
[334649537,1723391438520,-355.55693075,0.00011,2]
[334649538,1723391438555,-2183.16426548,0.00011,2]
[334649539,1723391438567,-13958.78096152,0.00011,2]
[334649540,1723391438581,-6343.80348218,0.00011,2]
[334649541,1723391438624,-18716.99087636,0.00011,2]
[334649542,1723391438636,-107569.25045688,0.00011,2]
[334649543,1723391438684,-972.15715375,0.00011,2]
[334649544,1723391438695,-536.05135203,0.00011,2]
[334649545,1723391438708,-1787.94488809,0.00011,2]
[334649546,1723391438721,-634.43145931,0.00011,2]
[334649704,1723391440368,-3474.04327968,0.00011,2]
[334649706,1723391440383,-3094.16293897,0.00011,2]
[334649709,1723391440394,-16876.40537994,0.00011,2]
[334649711,1723391440405,-939.63137312,0.00011,2]
[334649713,1723391440416,-847.02556474,0.00011,2]
[334649715,1723391440428,-3759.85673702,0.00011,2]
[334649717,1723391440438,-781.49581451,0.00011,2]
[334649719,1723391440447,-2666.06664273,0.00011,2]
[334649722,1723391440459,-902.16144431,0.00011,2]
[334649724,1723391440471,-2141.25728077,0.00011,2]
[334649726,1723391440487,-505.53116172,0.00011,2]
[334649730,1723391440517,-2476.92546041,0.00011,2]
[334649733,1723391440529,-630.25841339,0.00011,2]
[334649735,1723391440540,-2954.1894928,0.00011,2]
[334649738,1723391440555,-441.48538942,0.00011,2]
[334649742,1723391440586,-340134.43460052,0.00011,2]
[334649744,1723391440597,-186420.41431062,0.00011,2]
[334649746,1723391440609,-662.70634916,0.00011,2]
[334649749,1723391440620,-502.36071293,0.00011,2]
[334649751,1723391440633,-2749.99999999,0.00011,2]
[334649757,1723391440686,-3004.67043524,0.00011,2]
[334650028,1723391443452,-4100.05469248,0.00011,2]
[334650030,1723391443463,-1942.04386883,0.00011,2]
[334650032,1723391443475,-475.67259041,0.00011,2]
[334650091,1723391444035,-397.4043923,0.00011,2]
[334650093,1723391444046,-485.14439114,0.00011,2]
[334650095,1723391444057,-8264.97603201,0.00011,2]
[334650347,1723391446344,-556.54008017,0.00011,2]
[334650353,1723391446416,-1094.0838,0.00011,2]
[334650374,1723391446677,-2073.29355406,0.00011,2]
[334651090,1723391609834,154.83,8.219e-05,2]
[334651097,1723392109739,154.83,8.219e-05,2]
[334651098,1723392118103,1002.66,0.00027,120]
[334651100,1723392390781,150.0,0.00025673,120]
[334651105,1723392451367,150.0,0.00025097,120]
[334651144,1723392631614,-422.408079,9.766e-05,2]
[334651146,1723392631624,-278.59,9.815e-05,2]
[334651148,1723392631633,-161.58,9.84e-05,2]
[334651149,1723392631643,-250.0,9.868e-05,2]
[334651151,1723392631652,-627.421921,9.898e-05,2]
[334651154,1723392631673,-1935.80047111,9.898e-05,2]
[334651315,1723392639511,-1000.0,9.875e-05,2]
[334651317,1723392639522,-2546.28369418,9.898e-05,2]
[334651358,1723392639911,-2016.437266,9.898e-05,2]
[334651360,1723392639923,-1609.608,9.898e-05,2]
[334651363,1723392639943,-302.98,9.898e-05,2]
[334651365,1723392639956,-13394.10498143,9.898e-05,2]
[334651367,1723392639967,-344.62556429,9.898e-05,2]
[334651372,1723392640003,-1122.73810199,9.898e-05,2]
[334651374,1723392640013,-550.0,0.0001,2]
[334651376,1723392640023,-150.0,0.00010378,2]
[334651378,1723392640032,-23.70160601,0.00010542,2]
[334651380,1723392640044,-136.17839399,0.00010542,2]
[334651382,1723392640053,-159.88,0.00010551,2]
[334651384,1723392640063,-36.75993925,0.00010551,2]
[334651386,1723392640074,-393.33,0.00010551,2]
[334651390,1723392640095,-69.90006075,0.00010551,2]
[334651391,1723392640104,-900.9391371,0.00010551,2]
[334651643,1723392642484,-56.5408629,0.00010551,2]
[334651645,1723392642494,-609.8691371,0.00010551,2]
[334651657,1723392642597,-526.1408629,0.00010551,2]
[334651658,1723392642607,-1544.59,0.00010551,2]
[334651659,1723392642616,-159.88,0.0001056,2]
[334651660,1723392642626,-1482.46,0.0001056,2]
[334651661,1723392642644,-159.88,0.00010568,2]
[334651662,1723392642654,-159.88,0.00010577,2]
[334651663,1723392642663,-159.88,0.00010586,2]
[334651664,1723392642676,-159.88,0.00010595,2]
[334651665,1723392642686,-210.85,0.00010723,2]
[334651666,1723392642696,-154.83,0.00010735,2]
[334651667,1723392642705,-1131.04616101,0.0001078,2]
[334651668,1723392642714,-150.0,0.00010799,2]
[334651669,1723392642724,-5649.97944359,0.000108,2]
[334651670,1723392642733,-4989.8213,0.00010899,2]
[334651671,1723392642742,-15164.0379,0.00010899,2]
[334651672,1723392642754,-392.0338,0.000109,2]
[334651673,1723392642763,-1772.871,0.000109,2]
[334651674,1723392642772,-5348.83048515,0.000109,2]
[334651675,1723392642782,-242.76850774,0.000109,2]
[334651676,1723392642790,-426.28317716,0.000109,2]
[334651677,1723392642800,-250.0,0.00010959,2]
[334651678,1723392642810,-1418.72,0.00010959,2]
[334651679,1723392642822,-543.88980073,0.0001099,2]
[334651680,1723392642832,-1696.5385709,0.00010998,2]
[334651681,1723392642841,-537.0,0.00011,2]
[334651682,1723392642850,-84066.22036123,0.00011,2]
[334651683,1723392642859,-170575.16979705,0.00011,2]
[334651686,1723392642900,-1507.29,0.00011,2]
[334651694,1723392643749,-600.34827093,0.00011,2]
[334651695,1723392643760,-1909.90824921,0.00011,2]
[334651696,1723392643771,-711.66079676,0.00011,2]
[334651718,1723392645612,-3010.6092,0.00011,2]
[334651719,1723392647425,-58679.97742756,0.00011,2]
[334651720,1723392647434,-714.16545,0.00011,2]
[334651721,1723392647444,-21662387.87449218,0.00011,2]
[334651722,1723392647453,-679076.95391215,0.00011,2]
[334651723,1723392647469,-4148.01782332,0.00011,2]
[334651724,1723392647480,-590.59,0.00011,2]
[334651727,1723392750908,150.0,0.00025055,120]
[334651728,1723392772051,154.98,8.785e-05,2]
[334651729,1723392870830,150.0,0.00024281,120]
[334651731,1723392930986,150.0,0.00025877,120]
[334651743,1723393251835,157.62,8.366e-05,2]
[334651744,1723393273813,386.18690679,8.366e-05,2]
[334651745,1723393288596,1370.91176247,8.366e-05,2]
[334651751,1723393591355,150.0,0.00025021,120]
[334651759,1723393650760,150.0,0.00025576,120]
[334651763,1723393765568,157.62,8.219e-05,2]
[334651792,1723393831913,-908.2,9.93e-05,2]
[334651793,1723393831923,-1000.0,9.934e-05,2]
[334651794,1723393831933,-200.0,9.955e-05,2]
[334651795,1723393831942,-550.0,0.0001,2]
[334651796,1723393831951,-571.42598314,0.0001,2]
[334651797,1723393831961,-347.36,0.00010039,2]
[334651798,1723393831971,-168.68,0.00010053,2]
[334651799,1723393831980,-1586.58,0.00010063,2]
[334651800,1723393831989,-526.66030387,0.0001014,2]
[334651801,1723393831999,-686.84894999,0.0001014,2]
[334651802,1723393832008,-300.0,0.00010168,2]
[334651803,1723393832018,-5776.34,0.00010169,2]
[334651804,1723393832028,-516.85,0.00010174,2]
[334651805,1723393832037,-166.68,0.00010231,2]
[334651806,1723393832046,-250.0,0.0001026,2]
[334651807,1723393832055,-21084.0,0.000108,2]
[334651808,1723393832065,-2935.89725292,0.0001089,2]
[334651809,1723393832077,-4341.00054708,0.0001089,2]
[334651810,1723393832086,-2299.96615594,0.00010899,2]
[334651811,1723393832096,-2299.96615588,0.00010899,2]
[334651812,1723393832105,-2299.96615588,0.00010899,2]
[334651813,1723393832115,-2299.96615588,0.00010899,2]
[334651814,1723393832124,-25627.641,0.000109,2]
[334651815,1723393832134,-19497.39,0.000109,2]
[334651816,1723393832147,-250.0,0.00010959,2]
[334651817,1723393832156,-155.11386821,0.00010973,2]
[334651818,1723393832166,-32589.26229149,0.0001098,2]
[334651819,1723393832175,-99286.32402377,0.0001099,2]
[334651820,1723393832185,-87523.80089384,0.0001099,2]
[334651821,1723393832194,-14701.5187643,0.00010992,2]
[334651822,1723393832204,-18901.952697,0.00010992,2]
[334651823,1723393832213,-23102.3866297,0.00010992,2]
[334651824,1723393832222,-27302.8205624,0.00010992,2]
[334651825,1723393832231,-31503.254495,0.00010992,2]
[334651826,1723393832241,-2115.3861788,0.00010992,2]
[334651827,1723393832251,-2719.7822299,0.00010992,2]
[334651828,1723393832260,-3324.1782811,0.00010992,2]
[334651829,1723393832270,-3928.5743322,0.00010992,2]
[334651830,1723393832279,-4532.9703833,0.00010992,2]
[334651831,1723393832289,-566.8676405,0.00010992,2]
[334651832,1723393832299,-728.8298235,0.00010992,2]
[334651834,1723393832308,-890.7920065,0.00010992,2]
[334651835,1723393832317,-1052.7541895,0.00010992,2]
[334651837,1723393832327,-1214.7163725,0.00010992,2]
[334651839,1723393832335,-3361.93524863,0.00010998,2]
[334651840,1723393832344,-404.9054575,0.00010998,2]
[334651841,1723393832354,-48729.11630267,0.00010999,2]
[334651842,1723393832364,-62672.99655758,0.00011,2]
[334651843,1723393832374,-13672.33266975,0.00011,2]
[334651844,1723393832400,-685.05424735,0.00011,2]
[334651845,1723393832411,-1447.27005468,0.00011,2]
[334651851,1723393837714,-2299.96615588,0.00010899,2]
[334651853,1723393837723,-23607.63384413,0.00011,2]
[334651854,1723393837735,-1279.7631426,0.00011,2]
[334651855,1723393837772,-9423.75258294,0.00011,2]
[334651856,1723393837783,-5998.6,0.00011,2]
[334652048,1723393839823,-55960.54941957,0.00011,2]
[334652055,1723393839887,-19590.68828799,0.00011,2]
[334652063,1723393839949,-462511.2603832,0.00011,2]
[334652065,1723393839959,-2587705.57438773,0.00011,2]
[334652067,1723393839969,-1500.0,0.00011,2]
[334652069,1723393839978,-1500.0,0.00011,2]
[334652071,1723393839987,-1500.0,0.00011,2]
[334652073,1723393839998,-1500.0,0.00011,2]
[334652075,1723393840008,-1500.0,0.00011,2]
[334652077,1723393840017,-1500.0,0.00011,2]
[334652079,1723393840026,-1500.0,0.00011,2]
[334652081,1723393840036,-1752.03,0.00011,2]
[334652082,1723393840045,-1500.0,0.00011,2]
[334652084,1723393840055,-1500.0,0.00011,2]
[334652086,1723393840064,-234029.57695422,0.00011,2]
[334652088,1723393840073,-958539.71418334,0.00011,2]
[334652090,1723393840085,-392.805,0.00011,2]
[334652093,1723393840096,-301.12,0.00011,2]
[334652143,1723393842615,-745.08646596,0.00010899,2]
[334652144,1723393842627,-1554.87968992,0.00010899,2]
[334652145,1723393842637,-4461.32031008,0.00011,2]
[334652146,1723393842682,-1061.28,0.00011,2]
[334652160,1723393845839,-908.94469596,9.962e-05,2]
[334652161,1723393846086,-140.52471096,9.962e-05,2]
[334652162,1723393846095,-399105.45900458,0.00011,2]
[334652163,1723393846105,-2226.38,0.00011,2]
[334652164,1723393846116,-82901.38243253,0.00011,2]
[334652178,1723393950793,150.0,0.00023958,120]
[334652179,1723394070743,150.0,0.00025473,120]
[334652180,1723394130823,150.0,0.00026012,120]
[334652181,1723394191397,150.0,0.00025963,120]
[334652184,1723394250834,150.0,0.00025899,120]
[334652185,1723394310799,150.0,0.00025818,120]
[334652186,1723394317870,150.84,8.348e-05,2]
[334652187,1723394430766,150.0,0.00024106,120]
[334652190,1723394730770,150.0,0.00024493,120]
[334652191,1723394782663,150.84,8.219e-05,2]
[334652218,1723394970873,150.0,0.00024993,120]
[334652219,1723395030973,150.0,0.00025111,120]
[334652224,1723395031860,-627.85298596,9.941e-05,2]
[334652225,1723395031918,-411.46701404,9.941e-05,2]
[334652226,1723395031928,-522.80021426,9.962e-05,2]
[334652227,1723395031938,-303.96272991,9.962e-05,2]
[334652228,1723395031947,-173.04,9.988e-05,2]
[334652229,1723395031956,-800.0,9.998e-05,2]
[334652230,1723395031965,-1358.55,0.00010016,2]
[334652231,1723395031976,-1259.1,0.00010018,2]
[334652232,1723395031986,-197.97,0.00010041,2]
[334652233,1723395031995,-250.0,0.00010047,2]
[334652234,1723395032004,-347.35,0.00010049,2]
[334652235,1723395032014,-200.0,0.00010259,2]
[334652236,1723395032023,-186.1072,0.00010396,2]
[334652237,1723395032032,-170.39,0.0001055,2]
[334652238,1723395032041,-167.7,0.0001055,2]
[334652239,1723395032050,-676.2827,0.0001069,2]
[334652240,1723395032059,-150.0,0.00010727,2]
[334652241,1723395032068,-150.0,0.00010734,2]
[334652242,1723395032078,-150.0,0.00010744,2]
[334652243,1723395032087,-150.0,0.00010754,2]
[334652244,1723395032098,-300.0,0.00010769,2]
[334652245,1723395032107,-1424.35,0.0001077,2]
[334652247,1723395032119,-150.0,0.0001077,2]
[334652248,1723395032128,-150.0,0.00010772,2]
[334652250,1723395032138,-150.0,0.00010788,2]
[334652252,1723395032147,-150.0,0.00010789,2]
[334652254,1723395032157,-150.0,0.00010789,2]
[334652256,1723395032166,-75.21675838,0.0001079,2]
[334652257,1723395032178,-1440.43885463,0.0001079,2]
[334652258,1723395032189,-706.11031433,0.0001079,2]
[334652259,1723395032200,-945.00063541,0.0001079,2]
[334652275,1723395038004,-8733.22320206,0.0001079,2]
[334652278,1723395038057,-1788.39037466,0.0001079,2]
[334652279,1723395038170,-2627.60040004,0.0001079,2]
[334652280,1723395038182,-3991.56874075,0.0001079,2]
[334652281,1723395038193,-13734.99935808,0.0001079,2]
[334652282,1723395038205,-1757.41072631,0.0001079,2]
[334652283,1723395038397,-1051.74850456,0.0001079,2]
[334652434,1723395040199,-27998.49594635,0.0001079,2]
[334652441,1723395040259,-33439.76028444,0.0001079,2]
[334652444,1723395040269,-1848.8514,0.0001079,2]
[334652446,1723395040278,-499.99,0.0001079,2]
[334652448,1723395040287,-150.0,0.00010794,2]
[334652449,1723395040296,-150.0,0.00010802,2]
[334652451,1723395040306,-150.0,0.00010803,2]
[334652454,1723395040315,-150.0,0.0001081,2]
[334652456,1723395040325,-150.0,0.00010814,2]
[334652458,1723395040335,-150.0,0.00010814,2]
[334652460,1723395040344,-150.0,0.0001082,2]
[334652462,1723395040353,-150.0,0.0001082,2]
[334652464,1723395040363,-150.0,0.00010826,2]
[334652466,1723395040372,-150.0,0.0001084,2]
[334652468,1723395040382,-150.0,0.00010841,2]
[334652470,1723395040391,-150.0,0.00010848,2]
[334652472,1723395040401,-150.0,0.00010865,2]
[334652474,1723395040410,-200.0,0.00010873,2]
[334652476,1723395040419,-500.0,0.0001089,2]
[334652478,1723395040428,-100000.0,0.0001089,2]
[334652480,1723395040438,-245000.0,0.0001089,2]
[334652482,1723395040447,-1000.0,0.0001089,2]
[334652484,1723395040456,-2680.2536,0.0001089,2]
[334652486,1723395040465,-150.0,0.00010891,2]
[334652488,1723395040475,-919.98646237,0.00010899,2]
[334652490,1723395040484,-919.98646235,0.00010899,2]
[334652492,1723395040493,-919.98646235,0.00010899,2]
[334652494,1723395040503,-919.98646235,0.00010899,2]
[334652496,1723395040512,-919.98646235,0.00010899,2]
[334652497,1723395040521,-919.98646235,0.00010899,2]
[334652499,1723395040530,-919.98646235,0.00010899,2]
[334652501,1723395040540,-919.98646235,0.00010899,2]
[334652503,1723395040550,-919.98646235,0.00010899,2]
[334652505,1723395040559,-150.0,0.00010899,2]
[334652508,1723395040568,-1008.0,0.000109,2]
[334652510,1723395040578,-1000.0,0.000109,2]
[334652512,1723395040587,-1000.0,0.000109,12]
[334652514,1723395040597,-1069.1925,0.000109,2]
[334652516,1723395040607,-1001.0,0.000109,2]
[334652518,1723395040616,-12383.0055,0.000109,2]
[334652519,1723395040626,-541.6496,0.000109,2]
[334652521,1723395040635,-919.98646235,0.000109,2]
[334652523,1723395040645,-534.50786604,0.000109,2]
[334652525,1723395040655,-169.46887535,0.000109,2]
[334652527,1723395040665,-150.0,0.00010904,2]
[334652529,1723395040674,-150.0,0.00010906,2]
[334652531,1723395040684,-150.0,0.0001092,2]
[334652533,1723395040693,-150.0,0.00010922,2]
[334652535,1723395040702,-150.0,0.0001093,2]
[334652537,1723395040711,-150.0,0.0001093,2]
[334652539,1723395040721,-167.60641119,0.0001093,2]
[334652541,1723395040730,-150.0,0.00010936,2]
[334652543,1723395040739,-150.0,0.00010945,2]
[334652545,1723395040748,-150.0,0.00010949,2]
[334652547,1723395040757,-150.0,0.00010954,2]
[334652549,1723395040767,-150.0,0.00010959,2]
[334652551,1723395040776,-250.0,0.00010959,2]
[334652553,1723395040786,-1000.0,0.00010959,2]
[334652555,1723395040795,-150.0,0.00010962,2]
[334652557,1723395040805,-150.0,0.00010963,2]
[334652559,1723395040815,-150.0,0.00010965,2]
[334652561,1723395040826,-200.0,0.00010973,2]
[334652563,1723395040835,-150.0,0.00010979,2]
[334652565,1723395040845,-150.0,0.0001098,2]
[334652567,1723395040855,-150.0,0.0001098,2]
[334652569,1723395040864,-150.0,0.00010983,2]
[334652571,1723395040874,-150.0,0.00010991,2]
[334652573,1723395040883,-150.0,0.00010997,2]
[334652575,1723395040897,-188.75297818,0.00010999,2]
[334652577,1723395040906,-150.01,0.00010999,2]
[334652579,1723395040915,-46762.9459928,0.00011,2]
[334652582,1723395040925,-2503130.22202067,0.00011,2]
[334652584,1723395042026,-367.64326848,0.00011,2]
[334652585,1723395042037,-262.67499999,0.00011,2]
[334652605,1723395042891,-87377.04625812,0.00011,2]
[334652607,1723395042946,-285.075,0.00011,2]
[334652608,1723395042959,-64192.01766223,0.00011,2]
[334652609,1723395043004,-612.5168473,0.00011,2]
[334652610,1723395043059,-1329.54172578,0.00011,2]
[334652611,1723395043117,-10135.46244425,0.00011,2]
[334652615,1723395043933,-1232.8790104,0.00011,2]
[334652632,1723395045998,-1434.79165165,0.00011,2]
[334652633,1723395046010,-1584.77000004,0.00011,2]
[334652634,1723395046022,-266.39857557,0.00011,2]
[334652635,1723395046061,-818.55008395,0.00011,2]
[334652636,1723395046074,-6362.28804746,0.00011,2]
[334652637,1723395046085,-1688.41816682,0.00011,2]
[334652638,1723395046096,-522.88362862,0.00011,2]
[334652639,1723395046109,-1303.17693193,0.00011,2]
[334652640,1723395046160,-612.475,0.00011,2]
[334652641,1723395046181,-1862.16288396,0.00011,2]
[334652642,1723395046192,-500.0,0.00011,2]
[334652643,1723395046239,-2087.08,0.00011,2]
[334652644,1723395046256,-295.21458624,0.00011,2]
[334652645,1723395046298,-500.04581463,0.00011,2]
[334652646,1723395046309,-2924.57046392,0.00011,2]
[334652647,1723395090737,150.0,0.00025887,120]
[334652648,1723395210763,150.0,0.00025796,120]
[334652650,1723395330782,150.0,0.0002608,120]
[334652651,1723395366990,151.56,8.219e-05,2]
[334652652,1723395391329,150.0,0.00025052,120]
[334652654,1723395450826,150.0,0.00024057,120]
[334652655,1723395510791,150.0,0.00026794,120]
[334652659,1723395690891,150.0,0.00025823,120]
[334652664,1723395955005,151.56,8.219e-05,2]
[334652685,1723396232676,-3057.263527,9.758e-05,2]
[334652686,1723396232686,-250.0,9.807e-05,2]
[334652687,1723396232696,-260.51,9.807e-05,2]
[334652688,1723396232705,-159.88,9.836e-05,2]
[334652689,1723396232715,-300.0,9.847e-05,2]
[334652690,1723396232724,-300.0,9.847e-05,2]
[334652691,1723396232734,-13827.99358047,9.847e-05,2]
[334652692,1723396232743,-159.88,9.848e-05,2]
[334652693,1723396232752,-159.88,9.861e-05,2]
[334652694,1723396232761,-159.88,9.873e-05,2]
[334652695,1723396232771,-159.88,9.885e-05,2]
[334652696,1723396232780,-23900.0,9.924e-05,2]
[334652697,1723396232790,-499.99,9.924e-05,2]
[334652698,1723396232799,-427.19,9.935e-05,2]
[334652699,1723396232808,-150.0,9.961e-05,2]
[334652700,1723396232817,-95743.10583544,9.962e-05,2]
[334652701,1723396232826,-640.0,9.974e-05,2]
[334652702,1723396232836,-550.0,0.0001,2]
[334652703,1723396232845,-194.46,0.0001001,2]
[334652704,1723396232855,-167.72,0.00010113,2]
[334652705,1723396232866,-360.0,0.00010352,2]
[334652706,1723396232875,-208.08,0.00010491,2]
[334652707,1723396232885,-2500.0,0.0001069,2]
[334652708,1723396232894,-3781.4284,0.0001069,2]
[334652709,1723396232903,-2409.3158,0.0001069,2]
[334652710,1723396232912,-1000.0,0.0001069,2]
[334652711,1723396232922,-61666.25,0.0001079,2]
[334652712,1723396232932,-69103.45951813,0.0001079,2]
[334652713,1723396232943,-667.36237526,0.0001079,2]
[334652714,1723396232954,-1093.99731972,0.0001079,2]
[334652715,1723396232965,-418.90217464,0.0001079,2]
[334652716,1723396232977,-1323.01385731,0.0001079,2]
[334652717,1723396232993,-24090.89895494,0.0001079,2]
[334652718,1723396233002,-3467.74378512,0.0001079,2]
[334652719,1723396233014,-633.33,0.0001079,2]
[334652720,1723396233025,-650.14882909,0.0001079,2]
[334652721,1723396233046,-1121.25510711,0.0001079,2]
[334652723,1723396233057,-341.42630098,0.0001079,2]
[334652725,1723396233075,-508.47198714,0.0001079,2]
[334652741,1723396238581,-1504.2,0.0001079,2]
[334652742,1723396238592,-475.14527595,0.0001079,2]
[334652743,1723396238607,-544.37084928,0.0001079,2]
[334652744,1723396238627,-1698.02186945,0.0001079,2]
[334652745,1723396238651,-279.36,0.0001079,2]
[334652748,1723396240117,-413.36440602,0.0001079,2]
[334652749,1723396240128,-2506.91688986,0.0001079,2]
[334652750,1723396240137,-987.42387718,0.0001079,2]
[334652751,1723396240148,-837.74750378,0.0001079,2]
[334652752,1723396240159,-174.82861904,0.0001079,2]
[334652753,1723396240169,-420.0,0.00010832,2]
[334652754,1723396240178,-420.0,0.00010832,2]
[334652755,1723396240187,-337.2534492,0.00010897,2]
[334652756,1723396240198,-696.7690233,0.00010897,2]
[334652757,1723396240209,-7863.74849645,0.00010897,2]
[334652758,1723396240219,-767.17471136,0.00010899,2]
[334652759,1723396240229,-767.1747113,0.00010899,2]
[334652760,1723396240238,-767.1747113,0.00010899,2]
[334652761,1723396240248,-767.1747113,0.00010899,2]
[334652762,1723396240257,-767.1747113,0.00010899,2]
[334652763,1723396240268,-767.1747113,0.00010899,2]
[334652764,1723396240280,-767.1747113,0.00010899,2]
[334652765,1723396240289,-767.1747113,0.00010899,2]
[334652766,1723396240298,-767.1747113,0.00010899,2]
[334652767,1723396240307,-338.9377507,0.000109,2]
[334652768,1723396240318,-11981.91920622,0.000109,2]
[334652769,1723396240330,-1617.592005,0.000109,2]
[334652770,1723396240341,-1363.68834929,0.000109,2]
[334652771,1723396240354,-2023.404,0.000109,2]
[334652772,1723396240367,-359.58943198,0.000109,2]
[334652773,1723396240389,-1818.9,0.000109,2]
[334652774,1723396240400,-19357.1500304,0.000109,2]
[334652775,1723396240411,-12694.96982004,0.000109,2]
[334652776,1723396240423,-1031.00172718,0.000109,2]
[334652777,1723396240435,-338.0226125,0.000109,2]
[334652778,1723396240446,-12897.73035814,0.000109,2]
[334652779,1723396240461,-2481.97911351,0.000109,2]
[334652780,1723396240473,-48804.17125912,0.000109,2]
[334652781,1723396240484,-4285.81638443,0.000109,2]
[334652782,1723396240502,-320.10297877,0.000109,2]
[334652783,1723396240513,-1086.34670665,0.000109,2]
[334652784,1723396240525,-535.85788251,0.000109,2]
[334652785,1723396240536,-1534.61932229,0.000109,2]
[334652786,1723396240547,-2837.74696614,0.000109,2]
[334652787,1723396240559,-633.33995979,0.000109,2]
[334652788,1723396240570,-68963.51653075,0.000109,2]